Cogmind - Beta 12 @@@ ROGUE MODE // 2023.07.25 @ 22:17:55 Player: noklam Result: Destroyed by G-47 Trooper with Particle Gun Performance ------------- Evolutions (3) 1500 Regions Visited (9) 1800 Robots Destroyed (65) 325 Value Destroyed (2082) 2082 Prototype IDs (34) 680 Alien Tech Used (0) 0 Bonus (205) 205 TOTAL SCORE: 6592 Bonus ------- Follower Combat Kills 50 Aligned with FarCom 300 Friendly Fire -145 Cogmind --------- Core Integrity 0/700 Matter 165/300 Energy 97/100 System Corruption 5% Temperature Cool (9) Movement Walking (120) Location -7/Storage Parts ------- > --- POWER (2) -------- (None) > --- PROPULSION (4) --- Aluminum Leg Aluminum Leg > --- UTILITY (5) ------ Medium Storage Unit > --- WEAPON (2) ------- Mini Assault Cannon Mini Assault Cannon > --- INVENTORY (10) --- Nuclear Core Light Nuclear Core Advanced ECM Suite Advanced ECM Suite Advanced ECM Suite Arc Projector Ion Cannon Cooled Particle Cannon Scythe Peak State ------------ > --- POWER ------------ Heavy Deuterium Engine Cooled Deuterium Engine > --- PROPULSION ------- Gravmag System Improved Airjet Improved VTOL Module Cooled VTOL Module > --- UTILITY ---------- Improved Heat Sink Medium Storage Unit Gravity Neutralizer Advanced ECM Suite Powered Armor > --- WEAPON ----------- Improved EM Shotgun Mini Assault Cannon > --- INVENTORY -------- Nuclear Core Light Nuclear Core Micro Nuclear Core Micro Nuclear Core Improved EM Shotgun Arc Projector Ion Cannon Cooled Particle Cannon Mini Assault Cannon Scythe [Rating: 57] Favorites ----------- Power Light Angular Momentum Engine Engine Light Angular Momentum Engine Power Core Nuclear Core Propulsion Compact Wheel Treads Light Treads Leg Aluminum Leg Wheel Compact Wheel Hover Unit Gravmag System Flight Unit Improved VTOL Module Utility Medium Storage Unit Device ECM Suite Storage Medium Storage Unit Processor Machine Analyzer Hackware Hacking Suite Protection Light Armor Plating Weapon Autogun Energy Gun Shock Rifle Energy Cannon Cooled Particle Cannon Ballistic Gun Autogun Ballistic Cannon Assault Cannon Slashing Weapon Scythe Build | -11 -10 -10 -9 -9 -9 -8 -8 -7 -7 ------- Run | Jun Mat Min Mat Min Exi Min Mat Fac Sto Slots Evolved 6 | . . . 2 . . . 2 2 . Power 1 | . . . . . . . 1 . . Propulsion 2 | . . . 1 . . . . 1 . Utility 3 | . . . 1 . . . 1 1 . Weapon . | . . . . . . . . . . Parts Attached 142 | 6 6 7 7 5 2 7 47 9 46 Power 27 | 1 . 2 1 2 . . 6 2 13 Engine 18 | 1 . 2 1 2 . . 4 2 6 Core 9 | . . . . . . . 2 . 7 Reactor . | . . . . . . . . . . Propulsion 33 | 2 1 1 3 . . 2 11 . 13 Treads 3 | . . . 1 . . . . . 2 Leg 22 | 2 1 1 . . . . 11 . 7 Wheel 4 | . . . 2 . . 2 . . . Hover 2 | . . . . . . . . . 2 Flight 2 | . . . . . . . . . 2 Utility 37 | 1 3 2 1 . 2 3 15 5 5 Device 22 | . 3 1 1 . 1 1 8 3 4 Storage 5 | 1 . . . . 1 . 3 . . Processor 1 | . . 1 . . . . . . . Hackware 2 | . . . . . . 1 1 . . Protection 7 | . . . . . . 1 3 2 1 Artifact . | . . . . . . . . . . Weapon 45 | 2 2 2 2 3 . 2 15 2 15 Energy Gun 13 | 1 . . . 1 . . 5 1 5 Energy Cannon 8 | . . 1 . . . . 2 1 4 Ballistic Gun 13 | 1 2 . 2 2 . 1 4 . 1 Ballistic Cannon 5 | . . 1 . . . 1 . . 3 Launcher . | . . . . . . . . . . Special Weapon . | . . . . . . . . . . Impact Weapon . | . . . . . . . . . . Slashing Weapon 6 | . . . . . . . 4 . 2 Piercing Weapon . | . . . . . . . . . . Special Melee Weapon . | . . . . . . . . . . Unidentified Prototypes 13 | . . 1 . . 2 . 1 . 9 Parts Lost 47 | . . 6 . . . . 11 1 29 Power 10 | . . 2 . . . . 1 . 7 Propulsion 18 | . . 2 . . . . 5 . 11 Utility 11 | . . . . . . . 4 . 7 Weapon 8 | . . 2 . . . . 1 1 4 Highest Loss Streak 9 | . . 6 . . . . 3 1 9 To Critical Strikes 1 | . . . . . . . 1 . . Average Slot Usage (%) 91 | . 97 99 73 100 95 99 95 85 80 Engine 12 | . 14 13 10 11 11 11 12 14 12 Core 1 | . . . . . . . 4 . 1 Treads 4 | . . . . 11 11 11 2 . 1 Leg 13 | . 28 27 . . . . 22 23 10 Wheel 7 | . . . 20 22 22 22 1 . . Hover 1 | . . . . . . . . . 7 Flight 1 | . . . . . . . . . 4 Device 12 | . 11 13 11 11 11 4 12 22 15 Storage 9 | . 14 14 11 11 11 11 9 7 7 Processor 1 | . . . 11 11 6 . . . . Hackware 3 | . . . . . . 10 9 . . Protection 2 | . . . . . . 6 2 6 3 Energy Gun 2 | . 7 . . 2 . . 4 7 3 Energy Cannon 3 | . . 12 . . . . 2 2 6 Ballistic Gun 8 | . 21 1 9 19 22 14 5 . . Ballistic Cannon 3 | . . 13 . . . 7 1 . 2 Naked Turns . | . . . . . . . . . . Heaviest Build 60 | 14 15 23 15 21 34 35 47 46 60 Greatest Support 53 | 20 20 20 32 32 32 32 46 43 53 Greatest Overweight (x) 11 | 1 . 1 . . 1 1 3 1 11 Average Overweight (x) . | . . . . . . . . . 1 Largest Inventory Capacity 15 | 8 8 8 8 8 10 10 15 10 10 Average Capacity 9 | 7 8 8 8 8 9 10 10 10 10 Most Carried 10 | 4 8 8 7 8 9 10 10 10 10 Average Carried 8 | 2 6 7 4 6 8 9 8 9 9 Final Capacity 10 | 8 8 8 8 8 10 10 10 10 10 Final Carried 10 | 4 8 8 4 8 9 10 10 10 9 Class Distribution -------------------- 63% | Mutant 28% | Scavenger-Mutant 5% | Infiltrator-Mutant Dominant Class ---------------- Mutant | -10/Materials Mutant | -10/Mines Mutant | -9/Materials Mutant | -9/Mines Mutant | -9/Exiles Mutant | -8/Mines Scavenger-Mutant | -8/Materials Scavenger-Mutant | -7/Factory Mutant | -7/Storage Resources | -11 -10 -10 -9 -9 -9 -8 -8 -7 -7 ----------- Run | Jun Mat Min Mat Min Exi Min Mat Fac Sto Matter Collected 2075 | 260 113 86 . 200 . 159 541 . 716 Remotely . | . . . . . . . . . . Salvage Created 2550 | . 166 166 . 86 . 35 908 . 1189 Parts 137 | . 17 2 . 11 . 9 46 . 52 Haulers Intercepted 2 | . . . . . . . . . 2 Recyclers Shooed 2 | . . . . . . . 1 . 1 Parts Field Recycled . | . . . . . . . . . . Retrieved Matter . | . . . . . . . . . . Parts Self-Destructed . | . . . . . . . . . . Prevented . | . . . . . . . . . . Kills | -11 -10 -10 -9 -9 -9 -8 -8 -7 -7 ------- Run | Jun Mat Min Mat Min Exi Min Mat Fac Sto Combat Hostiles Destroyed 53 | . 5 4 . 6 . 4 16 . 18 Melee 6 | . . . . . . . 6 . . Guns 25 | . 5 . . 6 . 2 8 . 4 Cannons 20 | . . 4 . . . 2 2 . 12 AOE 1 | . . . . . . . . . 1 Classes Destroyed 17 | . 3 1 . . . . 8 . 5 Worker 3 | . . . . . . . 1 . 2 Builder 2 | . . . . . . . 2 . . Tunneler 1 | . 1 . . . . . . . . Hauler 2 | . . . . . . . . . 2 Recycler 2 | . . . . . . . 1 . 1 Mechanic 1 | . . . . . . . . . 1 Watcher 2 | . . . . . . . . . 2 Swarmer 15 | . 3 . . 6 . 4 2 . . Grunt 21 | . 2 2 . . . . 8 . 9 Brawler 1 | . . . . . . . 1 . . Duelist 1 | . . . . . . . 1 . . Sentry 6 | . . . . . . . . . 6 Specialist 2 | . . . . . . . 2 . . Hunter 1 | . . . . . . . 1 . . Programmer 3 | . . . . . . . . . 3 Heavy 1 | . . . . . . . 1 . . Assembled 2 | . . 2 . . . . . . . Thug 1 | . . 1 . . . . . . . Best Kill Streak 8 | . 4 2 . 4 . 2 8 . 5 Combat Bots Only 5 | . 3 2 . 4 . 2 5 . 3 Max Kills in Single Turn 2 | . 1 2 . 1 . 1 1 . 2 Gunslinging . | . . . . . . . . . . Exploded 1 | . . . . . . . . . 1 Melee 1 | . . . . . . . 1 . . Uniques/NPCs Destroyed . | . . . . . . . . . . Combat | -11 -10 -10 -9 -9 -9 -8 -8 -7 -7 -------- Run | Jun Mat Min Mat Min Exi Min Mat Fac Sto Damage Taken 6693 | . 234 670 . 183 . 190 1385 292 3739 Core 1128 | . 50 147 . 34 . . 192 27 678 Absorbed by Shields . | . . . . . . . . . . Core Remaining (%) 69 | 100 . 21 . . . 91 65 . . Volleys Fired 171 | . 15 7 . 10 . 9 44 . 86 Largest 2 | . 2 2 . 2 . 2 2 . 2 Hottest 124 | . 60 107 . 46 . 69 115 . 124 Shots Fired 300 | . 30 14 . 20 . 18 62 . 156 Gun 154 | . 30 . . 20 . 9 50 . 45 Cannon 146 | . . 14 . . . 9 12 . 111 Launcher . | . . . . . . . . . . Special . | . . . . . . . . . . Kinetic 172 | . 27 7 . 20 . 18 37 . 63 Thermal 54 | . . . . . . . 12 . 42 Explosive . | . . . . . . . . . . Electromagnetic 74 | . 3 7 . . . . 13 . 51 Robot Hit Streak 26 | . 8 4 . 3 . 2 9 . 26 Robot Miss Streak 8 | . 3 7 . 8 . 5 2 . 2 Penetration Max . | . . . . . . . . . . Secondary Targets 2 | . . . . 1 . . . . 1 Max Gunslinging Chain 1 | . . . . 1 . . . . 1 Shots Hit Robots 247 | . 18 11 . 10 . 6 67 . 135 Core Hits 110 | . 9 14 . 6 . 3 31 . 47 Critical Kills 1 | . . . . . . . . . 1 Critical Parts Destroyed . | . . . . . . . . . . Critical Strikes 10 | . . . . . . 1 3 . 6 Destroy 1 | . . . . . . . . . 1 Blast 4 | . . . . . . 1 . . 3 Corrupt 1 | . . . . . . . . . 1 Sever 4 | . . . . . . . 3 . 1 Melee Attacks 31 | . . . . . . . 20 . 11 Impact . | . . . . . . . . . . Slashing 31 | . . . . . . . 20 . 11 Piercing . | . . . . . . . . . . Sneak Attacks 3 | . . . . . . . 1 . 2 Combat Hostiles . | . . . . . . . . . . Follow-up Attacks . | . . . . . . . . . . Damage Inflicted 5922 | . 224 266 . 151 . 179 1590 . 3512 Guns 1913 | . 221 . . 139 . 70 770 . 713 Cannons 2772 | . . 266 . . . 76 244 . 2186 Explosions 152 | . . . . . . . 44 . 108 Melee 894 | . . . . . . . 519 . 375 Ramming 191 | . 3 . . 12 . 33 13 . 130 Kinetic 2583 | . 206 117 . 139 . 146 615 . 1360 Thermal 1161 | . . . . . . . 288 . 873 Explosive . | . . . . . . . . . . Electromagnetic 1093 | . 15 149 . . . . 155 . 774 Impact . | . . . . . . . . . . Slashing 894 | . . . . . . . 519 . 375 Piercing . | . . . . . . . . . . Highest Corruption 5 | . . . . . . . 5 . 5 Average Corruption 3 | . . . . . . . 5 . 2 Corruption Purged . | . . . . . . . . . . Corruption Blocked . | . . . . . . . . . . Effects 59 | . . . . . . . 26 . 33 Message Errors 17 | . . . . . . . 9 . 8 Matter Fused 11 | . . . . . . . 5 . 6 Heat Flow Errors 2 | . . . . . . . 1 . 1 Energy Discharges 6 | . . . . . . . 2 . 4 Parts Fused 2 | . . . . . . . . . 2 Data Loss (minor) 14 | . . . . . . . 7 . 7 Data Loss (major) 3 | . . . . . . . 2 . 1 Misfires 2 | . . . . . . . . . 2 Alerts 1 | . . . . . . . . . 1 Weapon Failures 1 | . . . . . . . . . 1 Overload Shots . | . . . . . . . . . . Overflow Damage 95 | . . 10 . . . 10 31 . 44 Projectiles 21 | . . 10 . . . 10 . . 1 Explosions . | . . . . . . . . . . Melee 74 | . . . . . . . 31 . 43 Knockbacks 12 | . . 5 . . . 1 1 . 5 Impact 1 | . . . . . . . 1 . . Kinetic 10 | . . 4 . . . 1 . . 5 Secondary 1 | . . 1 . . . . . . . Self-Inflicted Damage 130 | . . . . 6 . 15 6 . 103 Shots 1 | . . . . . . . . . 1 Rammed 20 | . . . . 1 . 4 1 . 14 Targets Rammed 26 | . 2 . . 1 . 4 2 . 17 Kicked 6 | . 2 . . . . . 1 . 3 Crushed . | . . . . . . . . . . Highest Temperature 314 | . . 45 . 4 . 106 275 12 314 Average Temperature 97 | . . 20 . 3 . 41 89 8 112 Received Heat Transfer 2065 | . 108 193 . . . 27 360 36 1341 Effects 1 | . . . . . . . . . 1 Interference 1 | . . . . . . . . . 1 Siege Activations . | . . . . . . . . . . Robots Corrupted 1 | . . . . . . . . . 1 Combat Hostiles 1 | . . . . . . . . . 1 Parts Fried 3 | . . 1 . . . . . . 2 Impact Corruptions . | . . . . . . . . . . Robots Melted . | . . . . . . . . . . Combat Hostiles . | . . . . . . . . . . Parts Melted 4 | . . . . . . . 1 . 3 Heat Transferred 1556 | . . . . . . . 383 . 1173 Parts Sabotaged . | . . . . . . . . . . Parts Stolen . | . . . . . . . . . . Parts Stripped . | . . . . . . . . . . Power Chain Reactions 2 | . . . . . . . 1 . 1 Missiles Intercepted . | . . . . . . . . . . Alert | -11 -10 -10 -9 -9 -9 -8 -8 -7 -7 ------- Run | Jun Mat Min Mat Min Exi Min Mat Fac Sto Peak Influence 187 | . 160 154 15 155 . 112 187 30 163 Initial 62 | . . 62 . 5 . . 43 2 13 Average 52 | . 53 77 2 107 . 35 41 14 61 Maximum Alert Level . | . . . . . . . . . . Low Security (%) 100 | 100 100 100 100 100 . 100 100 100 100 Level 1 . | . . . . . . . . . . Level 2 . | . . . . . . . . . . Level 3 . | . . . . . . . . . . Level 4 . | . . . . . . . . . . Level 5 . | . . . . . . . . . . High Security . | . . . . . . . . . . Max Security . | . . . . . . . . . . Squads Dispatched 13 | . . 2 . . . . 4 1 6 Investigation 4 | . . 1 . . . . 1 1 1 Extermination 3 | . . . . . . . . . 3 Reinforcement 5 | . . . . . . . 3 . 2 Assault 1 | . . 1 . . . . . . . Garrison . | . . . . . . . . . . Intercept . | . . . . . . . . . . Searches Triggered . | . . . . . . . . . . Construction Impeded . | . . . . . . . . . . Haulers Reinforced 1 | . . . . . . . . . 1 Active Scanning Responses . | . . . . . . . . . . Cargo Convoy Interrupts . | . . . . . . . . . . Stealth | -11 -10 -10 -9 -9 -9 -8 -8 -7 -7 --------- Run | Jun Mat Min Mat Min Exi Min Mat Fac Sto Distress Signals 10 | . . . . . . . 6 . 4 Communications Jammed 5 | . . . . . . . . . 5 Distress Signals 5 | . . . . . . . . . 5 Times Spotted 116 | . 8 10 1 10 . 10 37 2 38 Peak Tracking Total 6 | . 3 4 1 4 . 4 6 1 5 Tactical Retreats 26 | . 1 . . 1 . 3 9 1 11 Traps | -11 -10 -10 -9 -9 -9 -8 -8 -7 -7 ------- Run | Jun Mat Min Mat Min Exi Min Mat Fac Sto Traps Triggered 3 | . . . . . . . 1 1 1 Indirectly . | . . . . . . . . . . Trap Hack Attempts . | . . . . . . . . . . Triggered . | . . . . . . . . . . Disarmed . | . . . . . . . . . . Reprogrammed . | . . . . . . . . . . Reused . | . . . . . . . . . . Traps Extracted . | . . . . . . . . . . Installed . | . . . . . . . . . . Triggered 1 | . . . . 1 . . . . . Machines | -11 -10 -10 -9 -9 -9 -8 -8 -7 -7 ---------- Run | Jun Mat Min Mat Min Exi Min Mat Fac Sto Machines Disabled 4 | . . . . 1 . . . . 3 Max in Single Turn 1 | . . . . 1 . . . . 1 Garrison Access 1 | . . . . . . . 1 . . Machines Repaired . | . . . . . . . . . . Machines Sabotaged . | . . . . . . . . . . Overloaded Fab Kills . | . . . . . . . . . . Hacking | -11 -10 -10 -9 -9 -9 -8 -8 -7 -7 --------- Run | Jun Mat Min Mat Min Exi Min Mat Fac Sto Machines Accessed 17 | . 1 1 . . 5 . 6 1 3 Terminals 8 | . 1 . . . . . 5 . 2 Fabricators . | . . . . . . . . . . Repair Stations 2 | . . . . . . . . 1 1 Recycling Units . | . . . . . . . . . . Scanalyzers . | . . . . . . . . . . Garrison Access 1 | . . . . . . . 1 . . Total Hacks 79 | . 1 1 . . 50 . 16 3 8 Successful 63 | . 1 1 . . 50 . 8 1 2 Failed 16 | . . . . . . . 8 2 6 Catastrophic 3 | . . . . . . . 1 . 2 Database Lockouts . | . . . . . . . . . . Manual 2 | . . . . . 2 . . . . Terminals 19 | . 1 . . . . . 13 . 5 Fabricators . | . . . . . . . . . . Repair Stations 6 | . . . . . . . . 3 3 Recycling Units . | . . . . . . . . . . Scanalyzers . | . . . . . . . . . . Garrison Access 3 | . . . . . . . 3 . . Terminal Hacks 60 | . 1 1 . . 50 . 7 . 1 Record 49 | . . . . . 49 . . . . Open Door 2 | . . 1 . . . . . . 1 Emergency Access Points 1 | . . . . . . . 1 . . Locate Traps 1 | . . . . . . . 1 . . Dispatch Records 2 | . . . . . . . 2 . . Maintenance Status 1 | . . . . . . . 1 . . Recall Reinforcements 1 | . . . . . . . 1 . . Hauler Manifests 1 | . 1 . . . . . . . . Zone Layout 1 | . . . . . . . 1 . . EX-Prototype ID Bank 1 | . . . . . 1 . . . . Fabricator Hacks . | . . . . . . . . . . Repair Station Hacks 2 | . . . . . . . . 1 1 Scan Component 2 | . . . . . . . . 1 1 Recycling Unit Hacks . | . . . . . . . . . . Scanalyzer . | . . . . . . . . . . Garrison Access Hacks 1 | . . . . . . . 1 . . Seal Access 1 | . . . . . . . 1 . . Unauthorized Hacks . | . . . . . . . . . . Terminals . | . . . . . . . . . . Fabricators . | . . . . . . . . . . Repair Stations . | . . . . . . . . . . Recycling Units . | . . . . . . . . . . Scanalyzers . | . . . . . . . . . . Garrison Access . | . . . . . . . . . . Data Cores Recovered . | . . . . . . . . . . Used . | . . . . . . . . . . Hacking Detections 8 | . . . . . . . 5 1 2 Full Trace Events 2 | . . . . . . . . 1 1 Feedback Events . | . . . . . . . . . . Feedback Blocked . | . . . . . . . . . . Robot Schematics Acquired . | . . . . . . . . . . Robots Built . | . . . . . . . . . . Authchips . | . . . . . . . . . . Time . | . . . . . . . . . . Total Robot Build Rating . | . . . . . . . . . . Part Schematics Acquired . | . . . . . . . . . . Parts Built . | . . . . . . . . . . Authchips . | . . . . . . . . . . Time . | . . . . . . . . . . Total Part Build Rating . | . . . . . . . . . . Parts Repaired . | . . . . . . . . . . Time . | . . . . . . . . . . Parts Recycled . | . . . . . . . . . . Recycled Matter . | . . . . . . . . . . Retrieved Matter . | . . . . . . . . . . Retrieved Components . | . . . . . . . . . . Parts Scanalyzed . | . . . . . . . . . . Part Schematics Acquired . | . . . . . . . . . . Parts Damaged . | . . . . . . . . . . Bothacking | -11 -10 -10 -9 -9 -9 -8 -8 -7 -7 ------------ Run | Jun Mat Min Mat Min Exi Min Mat Fac Sto Used RIF Installer . | . . . . . . . . . . Robots Hacked . | . . . . . . . . . . Non-combat . | . . . . . . . . . . Combat . | . . . . . . . . . . Robot Hacks Applied . | . . . . . . . . . . Relay Couplers Released . | . . . . . . . . . . Fabnet Peak Effective % . | . . . . . . . . . . Robots Rewired . | . . . . . . . . . . Allies Hacked . | . . . . . . . . . . Hacks Repelled . | . . . . . . . . . . Allies | -11 -10 -10 -9 -9 -9 -8 -8 -7 -7 -------- Run | Jun Mat Min Mat Min Exi Min Mat Fac Sto Total Allies 1 | . . 1 . . . . . . . Largest Group 1 | . . 1 . . . . . . . Highest-Rated Group 31 | . . 31 . . . . . . . Highest-Rated Ally 31 | . . 31 . . . . . . . Total Orders . | . . . . . . . . . . Ally Attacks 7 | . . 7 . . . . . . . Total Damage 127 | . . 127 . . . . . . . Kills 2 | . . 2 . . . . . . . Allies Corrupted . | . . . . . . . . . . Allies Melted . | . . . . . . . . . . Intel | -11 -10 -10 -9 -9 -9 -8 -8 -7 -7 ------- Run | Jun Mat Min Mat Min Exi Min Mat Fac Sto Robot Analysis Total . | . . . . . . . . . . Derelict Logs Recovered 1 | . . 1 . . . . . . . Drone Launches . | . . . . . . . . . . Drone Recoveries . | . . . . . . . . . . Exploration | -11 -10 -10 -9 -9 -9 -8 -8 -7 -7 ------------- Run | Jun Mat Min Mat Min Exi Min Mat Fac Sto Turns Passed 6614 | 75 260 543 153 495 750 678 1727 316 1617 Spaces Moved 4440 | 54 171 273 144 443 735 604 1066 264 686 Core 11 | 4 . 2 . . . . . . 5 Treads 52 | . . . . . . . . . 52 Legs 1951 | 50 171 271 . . . . 941 264 254 Wheels 2051 | . . . 144 443 735 604 125 . . Hover 371 | . . . . . . . . . 371 Flight 4 | . . . . . . . . . 4 Fastest Speed 50 | 50 120 100 100 100 100 100 100 100 100 Average Speed 125 | 115 120 183 100 100 100 104 130 111 167 Slowest Speed 675 | 120 120 190 100 100 115 115 330 183 675 Overloaded Moves . | . . . . . . . . . . Propulsion Burnouts . | . . . . . . . . . . Robots Hopped . | . . . . . . . . . . Cave-ins Triggered . | . . . . . . . . . . Time Travels 1 | . . . . . 1 . . . . Exploration Rate (%) 42 | 4 35 42 12 65 93 76 49 5 44 Regions Visited 9 Branch Regions 5 Pre-discovered Areas 2 | . . 1 . . 1 . . . . Known Exits Taken . | . . . . . . . . . . Unknown Exits Taken 9 | 1 1 1 1 1 1 1 1 1 . Scrap Searched 3 | . . 1 . . . 2 . . . Spaces Dug . | . . . . . . . . . . Terrain Destroyed 35 | . . . . . . 4 6 . 25 Melee . | . . . . . . . . . . Projectile 21 | . . . . . . 4 1 . 16 AOE 14 | . . . . . . . 5 . 9 Terrain Rammed 3 | . . . . . . . . . 3 Walls Destroyed 1 | . . . . . . . . . 1 Machines Disabled . | . . . . . . . . . . Actions | -11 -10 -10 -9 -9 -9 -8 -8 -7 -7 --------- Run | Jun Mat Min Mat Min Exi Min Mat Fac Sto Total 5131 | 63 196 302 151 479 753 633 1318 287 949 Wait 163 | . . . 1 7 . 2 74 . 79 Move 4431 | 53 170 272 143 442 734 603 1065 263 686 Hop . | . . . . . . . . . . Pick Up 77 | 4 1 7 . 3 9 3 32 8 10 Fast Attach 47 | 6 2 2 3 2 . 1 11 2 18 Attach 35 | . . 1 4 . . 2 16 2 10 Detach 9 | . 1 . . 1 . 1 4 . 2 Swap 60 | . 4 4 . 3 2 4 20 5 18 Drop 72 | . 1 9 . 4 8 4 30 7 9 Fire 171 | . 15 7 . 10 . 9 44 . 86 Melee 31 | . . . . . . . 20 . 11 Ram 21 | . . . . 1 . 4 1 . 15 Kick 6 | . 2 . . . . . 1 . 3 Crush 2 | . . . . . . . . . 2 Escape Stasis . | . . . . . . . . . . Rewire 6 | . . . . 6 . . . . . Trap . | . . . . . . . . . . Miscellaneous . | . . . . . . . . . . Route ------- -11/Junkyard -10/Materials -10/Mines -9/Materials -9/Mines -9/Exiles (discovered 2 exits: [*Min x2]) -8/Mines -8/Materials (discovered 2 exits: *Fac x2) -7/Factory -7/Storage History --------- Turn | Location | Event 8 | -11/Junkyard | Discovered new exit (range 15) 76 | -11/Junkyard | Entered Materials 316 | -10/Materials | Build established: Mutant 322 | -10/Materials | Discovered new exit (range 10) 336 | -10/Materials | Entered Mines 342 | -10/Mines | Met a Derelict shopkeep closing up shop 407 | -10/Mines | Assembled infested the area 443 | -10/Mines | Met a Derelict testing a Signal Generator 451 | -10/Mines | Found Signal Generator 690 | -10/Mines | Learned location of Mines (-8) 747 | -10/Mines | Discovered new exit (range 15) 781 | -10/Mines | Found a damaged Exp. Sensor Array with a note attached 785 | -10/Mines | Found Prototype Device 790 | -10/Mines | Identified Exp. Sensor Array 868 | -10/Mines | Core integrity fell below 50% 879 | -10/Mines | Entered Materials 879 | -9/Materials | Evolved 2 slots: Propulsion x1, Utility x1 906 | -9/Materials | Lost 6 parts (2p2n2w) 941 | -9/Materials | Discovered new exit (range 4) 1032 | -9/Materials | Entered Mines 1057 | -9/Mines | Met a Derelict bent on vengeance 1221 | -9/Mines | Joined a pair of Derelicts in attacking an 0b10 outpost 1522 | -9/Mines | Deemed a non-threat by the Exiles lab entrance 1522 | -9/Mines | Discovered new exit (range 5) 1527 | -9/Mines | Entered Exiles 1541 | -9/Exiles | Discovered new exit (range 15) 1552 | -9/Exiles | Met 8R-AWN 1569 | -9/Exiles | Met EX-HEX 1622 | -9/Exiles | Met EX-DEC 1646 | -9/Exiles | Learned location of Zion (-6) 1683 | -9/Exiles | Discovered new exit (range 14) 1761 | -9/Exiles | Visited The Gauntlet 1930 | -9/Exiles | Met EX-BIN 1949 | -9/Exiles | Aligned with FarCom system 1950 | -9/Exiles | Given EX-Vault access code 1992 | -9/Exiles | Opened EX-Vault 1996 | -9/Exiles | Found Prototype Device 1997 | -9/Exiles | Identified Cloak of Protection 2005 | -9/Exiles | Found Prototype Device 2007 | -9/Exiles | Identified Chronowheel 2007 | -9/Exiles | Activated Chronowheel 2007 | -9/Exiles | Spacetime reconverged on an earlier point 2018 | -9/Exiles | Found Prototype Device 2071 | -9/Exiles | Warned to stay clear of 0b10 Research branches 2277 | -9/Exiles | Left Exiles lab with Cloak of Protection 2277 | -9/Exiles | Entered Mines 2949 | -8/Mines | Discovered new exit (range 5) 2955 | -8/Mines | Entered Materials 2955 | -8/Materials | Evolved 2 slots: Power x1, Utility x1 3432 | -8/Materials | Build established: Scavenger-Mutant 4180 | -8/Materials | Discovered new exit (range 11) 4261 | -8/Materials | Lost 3 parts (2n1u) 4272 | -8/Materials | Found Prototype Device 4393 | -8/Materials | Identified Active Sensor Suite 4674 | -8/Materials | Discovered new exit (range 8) 4682 | -8/Materials | Entered Factory 4682 | -7/Factory | Evolved 2 slots: Propulsion x1, Utility x1 4850 | -7/Factory | Discovered new exit (range 15) 4998 | -7/Factory | Entered Storage 5148 | -7/Storage | Lost 3 parts (2p1w) 5409 | -7/Storage | Build established: Infiltrator-Mutant 5504 | -7/Storage | Lost 3 parts (2n1u) 5752 | -7/Storage | Found Powered Armor 5773 | -7/Storage | Build established: Mutant 5963 | -7/Storage | Core integrity fell below 50% 6416 | -7/Storage | Core integrity fell below 20% 6443 | -7/Storage | Lost 9 parts (2p4n1u2w) 6527 | -7/Storage | Lost 3 parts (1p2u) 6615 | -7/Storage | Destroyed by G-47 Trooper with Particle Gun Last Messages --------------- 06579_ Carbon-fiber Leg destroyed. 06579_ Lgt. Treads destroyed. 06582_ G-47 Trooper destroyed. 06585_ Destroyed Welding Torch. 06585_ G-47 Trooper destroyed. 06586_ U-05 Engineer builds a Wall. 06590_ Acquired Aluminum Leg. 06592_ U-05 Engineer builds a Wall. 06595_ G-47 Trooper suffers critical hit (Blast). 06595_ G-47 Trooper destroyed. 06596_ Overheating: System interference. 06596_ Mni. Assault Cannon temporarily disabled. 06597_ Lgt. Treads destroyed. 06597_ U-05 Engineer builds a Wall. 06603_ Mic. Nuclear Core destroyed. 06603_ Acquired Aluminum Leg. 06607_ Acquired 22 matter. 06608_ Acquired 38 matter. 06610_ Acquired 1 matter. 06613_ Mic. Nuclear Core destroyed. Map ----- +----------------------------------------------------+ | ??????????????????????????????# # "??" #?# # | | ??????????????????????????????# # "??" #?# # | | ??????????????????????????????# # """" #?# # | | ??????????????????????????????# # !% #?# # | | ??????????????????????????????#######+######?# # | | ????????????????????????????????????# #??????# % | | ????????????????????????????????????#%##?????# # | | ????????????????????????############# ########## # | | ????????????????????????# ! % ##?# # | | ????????????????????????# ###########%##### #??#%# | | ????????????????????????# #?????????#%#???# #??#!# | | ????????????????????????# #???????###+#???# #??#%# | | ?????????????????Y??????# #???????# ??# ####%# | | ?????????????????#??????# ######### ## ####*# | | ?????????????????# ????# + """ # !=###=# | | ?????????????????# ??# # """ +![]%%][# | | ?????????????????# # # """ # %###+# | | ?????????????????# + + ## ##]!== | | ?????????????????# # ############## ##"" % | | ???????????g?????# ??#m##/######???##### ##"" | | ?????????????????###????# #!! #???# + ##"T | | ???????????????????????##%# #???###T# ##"" | | ????????????g???#########b# #?????### ##"" | | ?????????? %%%g/ ! #???????###?? ! | | ?????????????????#######; # #???????????? | | ????????????????????????#@#########???????????? | | ????????????????????????# #????????????????????### | | ????????????????????????# #??????????????????????? | | ????????????????????????#+#??????????????????????? | | ?????????????????????????????????????????????????? | | ?????????????????????????????????????????????????? | | ?????????????????????????????????????????????????# | | ????????????????????????o????????????????????????# | | ?????????????????????????????????????????????????? | | ?????????????????????????????????????????????????? | | ?????????????????????????????????????????????????? | | ?????????????????????????????????????????????????? | | ?????????????????????????????????????????????????? | | ?????????????????????????????????????????????????? | | ????????????????o????????????????????????????????? | | ?????????????????????????????????????????????????? | | ?????????????????????????????????????????????????? | | ?????????????????????????????????????????????????? | | ?????????????????????????????????????????????????? | | ?????????????????????????????????????????????????? | | ?????????????????????????????????????????????????? | | ?????????????????????????????????????????????????? | | ?????????????????????????????????????????????????? | | | | | +----------------------------------------------------+ Best States ------------- Heat Dissipation 48 Energy Generation 31 Energy Capacity 520 Matter Stores 300 Matter Capacity 300 Sight Range 16 Robot Scan Range 20 Terrain Scan Range 14 Terrain Scan Density 10 ECM Strength 3 Jamming Range 12 Cloak Strength 5 Additional Mass Support 12 Armor Coverage 400 Evasion (%) 59 Recoil Reduction 2 Offensive Hacking 10 Defensive Hacking 10 Item Schematics ----------------- None Robot Schematics ------------------ None Fabricated ------------ Nothing Alien Tech Used ----------------- None Achievements -------------- GoHome() I Survived The Infestation Librarian Challenges ------------ None Game ------ Seed SapperModifiedVibroblade Manual? 0 Play Time 01:53:50 Cumulative 12.8 hours Start 2023.07.25 @ 19:57:27 End 2023.07.25 @ 22:17:55 Sessions 1 Manual Loads 0 Difficulty Rogue Special Mode None Game No. 16 Rogue 16 Adventurer 0 Explorer 0 Win Type - Total 0 Types 0/0/0/0/0/0/0/0/0 Lore% 15 Gallery% 20 Achievement% 16 Wizard Run 0 Options --------- ASCII 0 Keyboard 1 Movement Vi Keybinds 0 Fullscreen 1 Font 24/Smallcaps Map View 76x50 Tactical HUD 1 Map Filters NONE Filters NONE Steam 1 RUN: 96c341d4-4f0e-4906-9e99-84cd4f3a9886